fUST/lending_fUST_20250302
["ID","MTS","AMOUNT","RATE_DAILY","PERIOD"]
[355027449,1740874241338,-565.96,0.00024657,2]
[355027450,1740874241350,-500.0,0.00024657,2]
[355027451,1740874241363,-500.0,0.00024657,2]
[355027452,1740874241374,-500.0,0.00024657,2]
[355027453,1740874241386,-374.68078874,0.00024657,2]
[355027454,1740874241398,-500.0,0.00024657,2]
[355027455,1740874241409,-1415.66,0.00024657,2]
[355027456,1740874241423,-500.95402503,0.00024657,2]
[355027457,1740874241435,-500.0,0.00024657,2]
[355027458,1740874241447,-500.0,0.00024657,2]
[355027459,1740874241458,-500.0,0.00024657,2]
[355027460,1740874241469,-500.0,0.00024657,2]
[355027461,1740874241480,-11067.14,0.00024657,2]
[355027462,1740874241492,-500.0,0.00024657,2]
[355027463,1740874241504,-500.0,0.00024657,2]
[355027464,1740874241516,-500.0,0.00024657,2]
[355027465,1740874241527,-500.0,0.00024657,2]
[355027466,1740874241539,-500.0,0.00024657,2]
[355027467,1740874241551,-500.0,0.00024657,2]
[355027468,1740874241563,-500.0,0.00024657,2]
[355027469,1740874241575,-500.0,0.00024657,2]
[355027470,1740874241587,-500.0,0.00024657,2]
[355027471,1740874241599,-500.0,0.00024657,2]
[355027472,1740874241611,-500.0,0.00024657,2]
[355027473,1740874241623,-500.0,0.00024657,2]
[355027474,1740874241639,-500.0,0.00024657,2]
[355027475,1740874241651,-500.0,0.00024657,2]
[355027476,1740874241663,-500.0,0.00024657,2]
[355027477,1740874241674,-500.0,0.00024657,2]
[355027478,1740874241686,-500.0,0.00024657,2]
[355027479,1740874241698,-500.0,0.00024657,2]
[355027480,1740874241710,-500.0,0.00024657,2]
[355027481,1740874241723,-500.0,0.00024657,2]
[355027482,1740874241735,-500.0,0.00024657,2]
[355027483,1740874241747,-3685.15,0.00024657,2]
[355027484,1740874241759,-500.0,0.00024657,2]
[355027485,1740874241771,-500.0,0.00024657,2]
[355027486,1740874241785,-500.0,0.00024657,2]
[355027487,1740874241797,-500.0,0.00024657,2]
[355027488,1740874241809,-172.32,0.00024657,2]
[355027489,1740874241821,-1902.26,0.00024657,2]
[355027490,1740874241833,-500.0,0.00024657,2]
[355027491,1740874241845,-500.0,0.00024657,2]
[355027492,1740874241857,-3110.72,0.00024657,2]
[355027493,1740874241868,-5241.52,0.00024657,2]
[355027494,1740874241880,-504.10048671,0.00024657,2]
[355027495,1740874241892,-500.0,0.00024657,2]
[355027496,1740874241904,-500.0,0.00024657,2]
[355027497,1740874241915,-500.0,0.00024657,2]
[355027498,1740874241928,-500.0,0.00024657,2]
[355027499,1740874241939,-500.0,0.00024657,2]
[355027500,1740874241951,-542.2,0.00024657,2]
[355027501,1740874241962,-500.0,0.00024657,2]
[355027502,1740874241974,-500.0,0.00024657,2]
[355027503,1740874241987,-500.0,0.00024657,2]
[355027504,1740874242001,-500.0,0.00024657,2]
[355027505,1740874242012,-500.0,0.00024657,2]
[355027506,1740874242024,-500.0,0.00024657,2]
[355027507,1740874242037,-4789.54,0.00024657,2]
[355027508,1740874242050,-1010.58,0.00024657,2]
[355027509,1740874242062,-517.4246082,0.00024657,2]
[355027510,1740874242073,-1383.73,0.00024657,2]
[355027511,1740874242086,-602.98,0.00024657,2]
[355027512,1740874242098,-500.0,0.00024657,2]
[355027513,1740874242110,-500.0,0.00024657,2]
[355027514,1740874242121,-500.0,0.00024657,2]
[355027515,1740874242133,-500.0,0.00024657,2]
[355027516,1740874242145,-500.0,0.00024657,2]
[355027517,1740874242158,-1061.93,0.00024657,2]
[355027518,1740874242169,-500.0,0.00024657,2]
[355027519,1740874242181,-500.0,0.00024657,2]
[355027520,1740874242194,-500.0,0.00024657,2]
[355027521,1740874242206,-500.0,0.00024657,2]
[355027522,1740874242217,-500.0,0.00024657,2]
[355027523,1740874242233,-500.0,0.00024657,2]
[355027524,1740874242244,-718.03,0.00024657,2]
[355027525,1740874242255,-500.0,0.00024657,2]
[355027526,1740874242268,-732.47,0.00024657,2]
[355027527,1740874242279,-500.0,0.00024657,2]
[355027528,1740874242292,-1245.16,0.00024657,2]
[355027529,1740874242305,-1123.94,0.00024657,2]
[355027530,1740874242317,-1175.21,0.00024657,2]
[355027531,1740874242329,-1307.64,0.00024657,2]
[355027532,1740874242343,-500.0,0.00024657,2]
[355027533,1740874242355,-729.32,0.00024657,2]
[355027534,1740874242367,-500.0,0.00024657,2]
[355027535,1740874242380,-500.0,0.00024657,2]
[355027536,1740874242391,-11028.58,0.00024657,2]
[355027537,1740874242404,-500.0,0.00024657,2]
[355027538,1740874242415,-32365.13,0.00024657,2]
[355027539,1740874242427,-500.0,0.00024657,2]
[355027540,1740874242439,-884.84,0.00024657,2]
[355027541,1740874242450,-500.0,0.00024657,2]
[355027542,1740874242462,-500.0,0.00024657,2]
[355027543,1740874242474,-692.46,0.00024657,2]
[355027544,1740874242486,-407.70227789,0.00024657,2]
[355027545,1740874242497,-500.0,0.00024657,2]
[355027546,1740874242509,-500.0,0.00024657,2]
[355027547,1740874242520,-500.0,0.00024657,2]
[355027548,1740874242533,-500.0,0.00024657,2]
[355027549,1740874242545,-1458.05,0.00024657,2]
[355027550,1740874242556,-500.0,0.00024657,2]
[355027551,1740874242568,-500.0,0.00024657,2]
[355027552,1740874242579,-500.0,0.00024657,2]
[355027553,1740874242591,-500.0,0.00024657,2]
[355027554,1740874242602,-500.0,0.00024657,2]
[355027555,1740874242616,-500.0,0.00024657,2]
[355027556,1740874242629,-500.0,0.00024657,2]
[355027557,1740874242640,-500.0,0.00024657,2]
[355027558,1740874242652,-2032.49,0.00024657,2]
[355027559,1740874242664,-500.0,0.00024657,2]
[355027560,1740874242675,-697.77,0.00024657,2]
[355027561,1740874242686,-6330.17,0.00024657,2]
[355027562,1740874242698,-14943.48,0.00024657,2]
[355027563,1740874242710,-500.0,0.00024657,2]
[355027564,1740874242722,-500.0,0.00024657,2]
[355027565,1740874242734,-3134.42,0.00024657,2]
[355027566,1740874242745,-508.18433206,0.00024657,2]
[355027567,1740874242758,-500.0,0.00024657,2]
[355027568,1740874242769,-500.0,0.00024657,2]
[355027570,1740874242781,-836.59,0.00024657,2]
[355027572,1740874242793,-500.0,0.00024657,2]
[355027573,1740874242807,-1644.6,0.00024657,2]
[355027575,1740874242819,-500.0,0.00024657,2]
[355027577,1740874242831,-500.0,0.00024657,2]
[355027580,1740874242843,-513.09952248,0.00024657,2]
[355027582,1740874242856,-500.0,0.00024657,2]
[355027583,1740874242868,-500.0,0.00024657,2]
[355027585,1740874242881,-500.0,0.00024657,2]
[355027586,1740874242892,-518.42023982,0.00024657,2]
[355027587,1740874242904,-500.0,0.00024657,2]
[355027589,1740874242916,-7012.52,0.00024657,2]
[355027591,1740874242928,-1027.54,0.00024657,5]
[355027593,1740874242940,-500.0,0.00024657,2]
[355027594,1740874242953,-500.0,0.00024657,2]
[355027595,1740874242966,-3013.7,0.00024657,2]
[355027596,1740874242977,-849.97,0.00024657,2]
[355027597,1740874242988,-1415.14,0.00024657,2]
[355027598,1740874243000,-500.0,0.00024657,2]
[355027599,1740874243013,-500.0,0.00024657,2]
[355027600,1740874243026,-4732.12,0.00024657,2]
[355027601,1740874243038,-500.0,0.00024657,2]
[355027602,1740874243051,-500.0,0.00024657,2]
[355027604,1740874243064,-500.0,0.00024657,2]
[355027605,1740874243077,-500.0,0.00024657,2]
[355027606,1740874243090,-1311.14,0.00024657,2]
[355027607,1740874243107,-542.51,0.00024657,2]
[355027608,1740874243121,-500.0,0.00024657,2]
[355027609,1740874243134,-500.0,0.00024657,2]
[355027610,1740874243146,-500.0,0.00024657,2]
[355027611,1740874243158,-5218.04,0.00024657,2]
[355027612,1740874243170,-557.81,0.00024657,2]
[355027613,1740874243181,-500.0,0.00024657,2]
[355027614,1740874243194,-842.34,0.00024657,2]
[355027615,1740874243207,-13040.1,0.00024657,2]
[355027616,1740874243218,-500.0,0.00024657,2]
[355027617,1740874243235,-500.0,0.00024657,2]
[355027618,1740874243247,-1864.63,0.00024657,2]
[355027619,1740874243259,-500.0,0.00024657,2]
[355027620,1740874243271,-1028.6,0.00024657,2]
[355027621,1740874243283,-500.0,0.00024657,2]
[355027622,1740874243295,-500.0,0.00024657,2]
[355027623,1740874243307,-500.0,0.00024657,2]
[355027624,1740874243319,-500.0,0.00024657,2]
[355027625,1740874243331,-500.0,0.00024657,2]
[355027626,1740874243344,-500.0,0.00024657,2]
[355027627,1740874243357,-500.0,0.00024657,2]
[355027628,1740874243369,-500.0,0.00024657,2]
[355027629,1740874243382,-470.63071331,0.00024657,2]
[355027630,1740874243394,-978.78,0.00024657,2]
[355027631,1740874243408,-1423.76,0.00024657,2]
[355027632,1740874243421,-217.91203669,0.00024657,2]
[355027633,1740874243433,-1258.87,0.00024657,2]
[355027634,1740874243445,-669.97,0.00024657,2]
[355027635,1740874243457,-976.81,0.00024657,2]
[355027636,1740874243467,-500.0,0.00024657,2]
[355027637,1740874243476,-500.0,0.00024657,2]
[355027638,1740874243486,-1194.5,0.00024657,2]
[355027639,1740874243496,-500.0,0.00024657,2]
[355027640,1740874243506,-389.3726685,0.00024657,2]
[355027641,1740874243516,-580.16,0.00024657,2]
[355027642,1740874243527,-500.0,0.00024657,2]
[355027643,1740874243537,-500.0,0.00024657,2]
[355027645,1740874243548,-500.0,0.00024657,2]
[355027646,1740874243558,-500.0,0.00024657,2]
[355027647,1740874243568,-869.21,0.00024657,2]
[355027648,1740874243578,-500.0,0.00024657,2]
[355027649,1740874243590,-500.0,0.00024657,2]
[355027650,1740874243602,-525.35,0.00024657,2]
[355027651,1740874243984,-500.0,0.00024657,2]
[355027652,1740874244019,-500.0,0.00024657,2]
[355027653,1740874244041,-2879.74,0.00024657,2]
[355027654,1740874244062,-500.0,0.00024657,2]
[355027655,1740874244072,-500.0,0.00024657,2]
[355027656,1740874244082,-1920.39,0.00024657,2]
[355027657,1740874244091,-500.0,0.00024657,2]
[355027658,1740874244101,-1878.15,0.00024657,2]
[355027659,1740874244111,-500.0,0.00024657,2]
[355027660,1740874244120,-894.97,0.00024657,2]
[355027661,1740874244131,-500.0,0.00024657,2]
[355027662,1740874244141,-511.70009024,0.00024657,2]
[355027663,1740874244151,-500.0,0.00024657,2]
[355027664,1740874244160,-1175.2,0.00024657,2]
[355027665,1740874244170,-523.76,0.00024657,2]
[355027666,1740874244180,-500.0,0.00024657,2]
[355027667,1740874244190,-772.08,0.00024657,2]
[355027668,1740874244201,-16008.12,0.00024657,2]
[355027669,1740874244211,-749.78,0.00024657,2]
[355027670,1740874244224,-500.0,0.00024657,2]
[355027671,1740874244236,-568.12,0.00024657,2]
[355027672,1740874244246,-169289.01,0.00024657,2]
[355027673,1740874244257,-500.0,0.00024657,2]
[355027674,1740874244269,-1416.98,0.00024657,2]
[355027675,1740874244279,-785.3,0.00024657,2]
[355027676,1740874244290,-500.0,0.00024657,2]
[355027677,1740874244300,-500.0,0.00024657,2]
[355027678,1740874244310,-1770.65,0.00024657,2]
[355027679,1740874244319,-500.0,0.00024657,2]
[355027680,1740874244330,-497.16,0.00024657,2]
[355027681,1740874244339,-766.17,0.00024657,2]
[355027682,1740874244349,-290.851155,0.00024658,2]
[355027683,1740874244373,-200.0,0.00024658,2]
[355027684,1740874244384,-644.0100119,0.00024658,2]
[355027685,1740874244395,-268.64932979,0.00024673,2]
[355027686,1740874244405,-500.0,0.00024673,2]
[355027687,1740874244416,-500.0,0.00024673,2]
[355027688,1740874244428,-400.79280236,0.00024673,2]
[355027689,1740874244439,-500.0,0.00024673,2]
[355027690,1740874244450,-344.33537435,0.00024673,2]
[355027691,1740874244461,-254.57355322,0.00024673,2]
[355027692,1740874244471,-500.0,0.00024673,2]
[355027693,1740874244482,-500.0,0.00024673,2]
[355027694,1740874244493,-500.0,0.00024673,2]
[355027695,1740874244503,-483.69148931,0.00024673,2]
[355027696,1740874244515,-387.20735709,0.00024673,2]
[355027697,1740874244527,-152.11819969,0.00024673,2]
[355027698,1740874244537,-500.0,0.00024673,2]
[355027699,1740874244547,-500.0,0.00024673,2]
[355027700,1740874244557,-500.0,0.00024673,2]
[355027701,1740874244567,-500.0,0.00024673,2]
[355027702,1740874244578,-500.0,0.00024673,2]
[355027703,1740874244588,-500.0,0.00024673,2]
[355027704,1740874244598,-499.999999,0.00024673,2]
[355027705,1740874244608,-500.0,0.00024673,2]
[355027706,1740874244620,-500.0,0.00024673,2]
[355027707,1740874244631,-500.0,0.00024673,2]
[355027708,1740874244642,-500.0,0.00024673,2]
[355027709,1740874244653,-391.15,0.000247,7]
[355027710,1740874244666,-762.51202331,0.00024907,2]
[355027711,1740874244676,-558.2776123,0.00024931,2]
[355027712,1740874244686,-500.0,0.00024931,2]
[355027713,1740874244698,-500.0,0.00024931,2]
[355027714,1740874244708,-283.83787859,0.00024931,2]
[355027715,1740874244719,-1257.69,0.00024931,2]
[355027716,1740874244729,-500.0,0.00024931,2]
[355027717,1740874244740,-500.0,0.00024931,2]
[355027718,1740874244751,-500.0,0.00024931,2]
[355027719,1740874244761,-500.0,0.00024931,2]
[355027720,1740874244772,-508.53943739,0.00024931,2]
[355027721,1740874244782,-500.0,0.00024931,2]
[355027722,1740874244793,-500.0,0.00024931,2]
[355027723,1740874244803,-500.0,0.00024931,2]
[355027724,1740874244814,-530.92,0.00024931,2]
[355027725,1740874244824,-500.0,0.00024931,2]
[355027726,1740874244836,-500.0,0.00024931,2]
[355027727,1740874244847,-500.0,0.00024931,2]
[355027728,1740874244858,-500.0,0.00024931,2]
[355027729,1740874244868,-500.0,0.00024931,2]
[355027730,1740874244879,-500.0,0.00024931,2]
[355027731,1740874244891,-500.0,0.00024931,2]
[355027732,1740874244901,-1416.03,0.00024931,2]
[355027733,1740874244911,-500.0,0.00024931,2]
[355027734,1740874244921,-500.0,0.00024931,2]
[355027735,1740874244932,-500.0,0.00024931,2]
[355027736,1740874244942,-500.0,0.00024931,2]
[355027737,1740874244952,-500.0,0.00024931,2]
[355027738,1740874244962,-500.0,0.00024931,2]
[355027739,1740874244972,-1308.75,0.00024931,2]
[355027740,1740874244989,-500.0,0.00024931,2]
[355027741,1740874245000,-500.0,0.00024931,2]
[355027742,1740874245010,-500.0,0.00024931,2]
[355027743,1740874245021,-1075.4,0.00024931,2]
[355027744,1740874245032,-500.0,0.00024931,2]
[355027745,1740874245042,-500.0,0.00024931,2]
[355027746,1740874245052,-841.88,0.00024931,2]
[355027747,1740874245062,-585.69,0.00024931,2]
[355027748,1740874245072,-747.9,0.00024931,2]
[355027749,1740874245082,-500.0,0.00024931,2]
[355027750,1740874245094,-500.0,0.00024931,2]
[355027751,1740874245104,-500.0,0.00024931,2]
[355027752,1740874245115,-500.0,0.00024931,2]
[355027753,1740874245126,-500.0,0.00024931,2]
[355027754,1740874245136,-509.27511864,0.00024931,2]
[355027755,1740874245147,-566.9,0.00024931,2]
[355027756,1740874245157,-500.0,0.00024931,2]
[355027757,1740874245168,-500.0,0.00024931,2]
[355027758,1740874245178,-500.0,0.00024931,2]
[355027759,1740874245189,-500.0,0.00024931,2]
[355027760,1740874245199,-500.0,0.00024931,2]
[355027761,1740874245210,-500.0,0.00024931,2]
[355027762,1740874245221,-500.0,0.00024931,2]
[355027763,1740874245234,-500.0,0.00024931,2]
[355027764,1740874245245,-500.0,0.00024931,2]
[355027765,1740874245256,-500.0,0.00024931,2]
[355027766,1740874245267,-521.52329544,0.00024931,2]
[355027767,1740874245277,-500.0,0.00024931,2]
[355027768,1740874245288,-500.0,0.00024931,2]
[355027769,1740874245299,-500.0,0.00024931,2]
[355027770,1740874245310,-500.0,0.00024931,2]
[355027771,1740874245321,-655.63,0.00024931,2]
[355027772,1740874245331,-500.0,0.00024931,2]
[355027773,1740874245342,-927.18,0.00024931,2]
[355027774,1740874245352,-500.0,0.00024931,2]
[355027775,1740874245362,-500.0,0.00024931,2]
[355027776,1740874245373,-507.46,0.00024931,2]
[355027777,1740874245385,-500.0,0.00024931,2]
[355027778,1740874245396,-500.0,0.00024931,2]
[355027779,1740874245407,-500.0,0.00024931,2]
[355027780,1740874245418,-585.52,0.00024931,2]
[355027781,1740874245430,-513.21,0.00024931,2]
[355027782,1740874245441,-373.60693392,0.00024931,2]
[355027783,1740874245451,-1209.34,0.00024931,2]
[355027784,1740874245462,-689.84,0.00024931,2]
[355027785,1740874245472,-688.41,0.00024931,2]
[355027786,1740874245483,-559.65960212,0.00024931,2]
[355027787,1740874245493,-577.73,0.00024931,2]
[355027788,1740874245505,-856.62,0.00024931,2]
[355027789,1740874245515,-500.0,0.00024931,2]
[355027790,1740874245526,-500.0,0.00024931,2]
[355027791,1740874245536,-500.0,0.00024931,2]
[355027792,1740874245548,-1606.93,0.00024931,2]
[355027793,1740874245558,-500.0,0.00024931,2]
[355027794,1740874245569,-500.0,0.00024931,2]
[355027795,1740874245580,-500.0,0.00024931,2]
[355027796,1740874245592,-500.0,0.00024931,2]
[355027797,1740874245603,-500.0,0.00024931,2]
[355027798,1740874245614,-500.0,0.00024931,2]
[355027799,1740874245624,-500.0,0.00024931,2]
[355027800,1740874245635,-500.0,0.00024931,2]
[355027801,1740874245646,-1490.34,0.00024931,2]
[355027802,1740874245661,-500.0,0.00024931,2]
[355027803,1740874245671,-500.0,0.00024931,2]
[355027804,1740874245683,-1451.15,0.00024931,2]
[355027805,1740874245694,-791.47,0.00024931,2]
[355027806,1740874245705,-1437.23,0.00024931,2]
[355027807,1740874245716,-500.0,0.00024931,2]
[355027808,1740874245727,-500.0,0.00024931,2]
[355027809,1740874245738,-500.0,0.00024931,2]
[355027810,1740874245749,-1064.9,0.00024931,2]
[355027811,1740874245759,-500.0,0.00024931,2]
[355027812,1740874245769,-500.0,0.00024931,2]
[355027813,1740874245780,-669.23,0.00024931,2]
[355027814,1740874245790,-500.0,0.00024931,2]
[355027815,1740874245800,-500.0,0.00024931,2]
[355027816,1740874245810,-950.1,0.00024931,2]
[355027817,1740874245820,-500.0,0.00024931,2]
[355027818,1740874245831,-500.0,0.00024931,2]
[355027819,1740874245841,-500.0,0.00024931,2]
[355027820,1740874245851,-500.0,0.00024931,2]
[355027821,1740874245862,-500.0,0.00024931,2]
[355027822,1740874245872,-500.0,0.00024931,2]
[355027823,1740874245884,-1553.05,0.00024931,2]
[355027824,1740874245894,-500.0,0.00024931,2]
[355027825,1740874245904,-500.0,0.00024931,2]
[355027826,1740874245915,-500.0,0.00024931,2]
[355027827,1740874245926,-560.24,0.00024931,2]
[355027828,1740874245936,-744.69,0.00024931,2]
[355027829,1740874245946,-500.0,0.00024931,2]
[355027830,1740874245959,-500.0,0.00024931,2]
[355027831,1740874245969,-662.05,0.00024931,2]
[355027832,1740874245980,-500.0,0.00024931,2]
[355027833,1740874245990,-500.0,0.00024931,2]
[355027834,1740874246001,-500.0,0.00024931,2]
[355027835,1740874246012,-500.0,0.00024931,2]
[355027836,1740874246023,-972.56,0.00024931,2]
[355027837,1740874246033,-500.0,0.00024931,2]
[355027838,1740874246043,-500.0,0.00024931,2]
[355027839,1740874246054,-500.0,0.00024931,2]
[355027840,1740874246065,-840.89,0.00024931,2]
[355027841,1740874246076,-524.52,0.00024931,2]
[355027842,1740874246086,-500.0,0.00024931,2]
[355027843,1740874246096,-710.04,0.00024931,2]
[355027844,1740874246106,-2647.87,0.00024931,2]
[355027845,1740874246117,-2047.25,0.00024931,2]
[355027846,1740874246127,-500.0,0.00024931,2]
[355027847,1740874246137,-500.0,0.00024931,2]
[355027848,1740874246148,-500.0,0.00024931,2]
[355027849,1740874246158,-1152.75,0.00024931,2]
[355027850,1740874246174,-565.48,0.00024931,2]
[355027851,1740874246184,-500.0,0.00024931,2]
[355027852,1740874246195,-500.0,0.00024931,2]
[355027853,1740874246205,-500.0,0.00024931,2]
[355027854,1740874246216,-500.0,0.00024931,2]
[355027855,1740874246230,-1706.3,0.00024931,2]
[355027856,1740874246241,-500.0,0.00024931,2]
[355027857,1740874246252,-1116.33,0.00024931,2]
[355027858,1740874246263,-171.00372377,0.00024931,2]
[355027859,1740874246273,-1776.85,0.00024931,2]
[355027860,1740874246284,-500.0,0.00024931,2]
[355027861,1740874246296,-947.1,0.00024931,2]
[355027862,1740874246305,-500.0,0.00024931,2]
[355027863,1740874246317,-1012.27,0.00024931,2]
[355027864,1740874246327,-530.96,0.00024931,2]
[355027865,1740874246338,-500.0,0.00024931,2]
[355027866,1740874246348,-500.0,0.00024931,2]
[355027867,1740874246360,-500.0,0.00024931,2]
[355027868,1740874246371,-500.0,0.00024931,2]
[355027869,1740874246382,-500.0,0.00024931,2]
[355027871,1740874246393,-500.0,0.00024931,2]
[355027872,1740874246404,-1592.14,0.00024931,2]
[355027873,1740874246415,-500.0,0.00024931,2]
[355027874,1740874246425,-702.89,0.00024931,2]
[355027875,1740874246436,-500.0,0.00024931,2]
[355027876,1740874246447,-1123.98,0.00024931,2]
[355027877,1740874246458,-581.49533621,0.00024931,2]
[355027878,1740874246469,-867.01,0.00024931,2]
[355027879,1740874246479,-610.14,0.00024931,2]
[355027880,1740874246489,-500.0,0.00024931,2]
[355027881,1740874246500,-221.42438152,0.00024931,2]
[355027882,1740874246510,-500.0,0.00024931,2]
[355027883,1740874246520,-957.42,0.00024931,2]
[355027884,1740874246531,-583.57,0.00024931,2]
[355027885,1740874246541,-500.0,0.00024931,2]
[355027886,1740874246552,-2386.16,0.00024931,2]
[355027887,1740874246562,-1397.93,0.00024931,2]
[355027888,1740874246572,-500.0,0.00024931,2]
[355027889,1740874246582,-500.0,0.00024931,2]
[355027890,1740874246592,-677.18,0.00024931,2]
[355027891,1740874246603,-500.0,0.00024931,2]
[355027892,1740874246612,-500.0,0.00024931,2]
[355027893,1740874246623,-533.55066739,0.00024931,2]
[355027894,1740874246633,-797.7,0.00024931,2]
[355027895,1740874246644,-500.0,0.00024931,2]
[355027896,1740874246654,-856.01,0.00024931,2]
[355027897,1740874246665,-500.0,0.00024931,2]
[355027898,1740874246676,-1032.08,0.00024931,2]
[355027899,1740874246686,-500.0,0.00024931,2]
[355027900,1740874246696,-500.0,0.00024931,2]
[355027901,1740874246707,-767.82,0.00024931,2]
[355027902,1740874246717,-891.29,0.00024931,2]
[355027903,1740874246728,-503.15627078,0.00024931,2]
[355027904,1740874246738,-500.0,0.00024931,2]
[355027905,1740874246749,-523.7105927,0.00024931,2]
[355027906,1740874246759,-500.0,0.00024931,2]
[355027907,1740874246770,-2948.2,0.00024931,2]
[355027908,1740874246784,-500.0,0.00024931,2]
[355027909,1740874246800,-500.0,0.00024931,2]
[355027910,1740874246811,-500.0,0.00024931,2]
[355027911,1740874246822,-500.0,0.00024931,2]
[355027912,1740874246832,-500.0,0.00024931,2]
[355027913,1740874246842,-500.0,0.00024931,2]
[355027914,1740874246852,-318.20195733,0.00024931,2]
[355027915,1740874246863,-500.0,0.00024931,2]
[355027916,1740874246873,-500.0,0.00024931,2]
[355027917,1740874246884,-500.0,0.00024931,2]
[355027918,1740874246894,-633.36,0.00024931,2]
[355027919,1740874246905,-1119.77,0.00024931,2]
[355027920,1740874246915,-500.0,0.00024931,2]
[355027921,1740874246925,-2092.4,0.00024931,2]
[355027922,1740874246936,-771.56,0.00024931,2]
[355027923,1740874246946,-500.0,0.00024931,2]
[355027924,1740874246956,-1533.81,0.00024931,2]
[355027925,1740874246966,-500.0,0.00024931,2]
[355027926,1740874246976,-500.0,0.00024931,2]
[355027927,1740874246986,-500.0,0.00024931,2]
[355027928,1740874246996,-500.0,0.00024931,2]
[355027929,1740874247006,-500.0,0.00024931,2]
[355027930,1740874247016,-3246.45,0.00024931,2]
[355027931,1740874247027,-2013.41,0.00024931,2]
[355027932,1740874247038,-500.0,0.00024931,2]
[355027933,1740874247048,-500.0,0.00024931,2]
[355027934,1740874247058,-793.08,0.00024931,2]
[355027935,1740874247069,-715.76,0.00024931,2]
[355027936,1740874247080,-648.75,0.00024931,2]
[355027937,1740874247090,-623.59,0.00024931,2]
[355027938,1740874247101,-764.21,0.00024931,2]
[355027939,1740874247111,-500.0,0.00024931,2]
[355027940,1740874247123,-1015.26,0.00024931,2]
[355027941,1740874247134,-1256.81,0.00024931,2]
[355027942,1740874247143,-500.0,0.00024931,2]
[355027943,1740874247154,-1069.96,0.00024931,2]
[355027944,1740874247163,-500.0,0.00024931,2]
[355027945,1740874247175,-576.5,0.00024931,2]
[355027946,1740874247185,-500.0,0.00024931,2]
[355027947,1740874247194,-500.0,0.00024931,2]
[355027948,1740874247204,-1725.82,0.00024931,2]
[355027949,1740874247215,-500.0,0.00024931,2]
[355027950,1740874247229,-565.96,0.00024931,2]
[355027951,1740874247239,-500.0,0.00024931,2]
[355027952,1740874247249,-500.0,0.00024931,2]
[355027953,1740874247259,-500.0,0.00024931,2]
[355027954,1740874247270,-1415.66,0.00024931,2]
[355027955,1740874247280,-500.0,0.00024931,2]
[355027956,1740874247290,-500.0,0.00024931,2]
[355027957,1740874247301,-500.0,0.00024931,2]
[355027958,1740874247311,-11067.14,0.00024931,2]
[355027959,1740874247321,-500.0,0.00024931,2]
[355027960,1740874247332,-500.0,0.00024931,2]
[355027961,1740874247343,-500.0,0.00024931,2]
[355027962,1740874247352,-500.0,0.00024931,2]